bitfinex/quotes_BTCUSD_20240611
["timestamp","ask_amount","ask_price","bid_price","bid_amount"]
[1718099032517,0.001,67205.0,67202.0,0.0169358]
[1718099032722,0.000946,67206.0,67202.0,0.0169358]
[1718099032936,0.001,67205.0,67202.0,0.0169358]
[1718099033153,0.002,67205.0,67202.0,0.0169358]
[1718099033362,0.002,67205.0,67201.0,0.006]
[1718099033363,0.002,67205.0,67203.0,0.02072938]
[1718099033566,0.000946,67206.0,67203.0,0.02072938]
[1718099033785,0.000946,67206.0,67205.0,0.610798]
[1718099033997,0.000946,67206.0,67205.0,0.710798]
[1718099034220,0.43295979,67222.0,67219.0,0.442]
[1718099034423,0.43295979,67222.0,67220.0,0.0610771]
[1718099034644,0.04939341,67223.0,67220.0,0.0610771]
[1718099034907,0.8041,67238.0,67220.0,0.0610771]
[1718099034908,0.148734,67234.0,67220.0,0.0610771]
[1718099035127,0.14431993,67233.0,67220.0,0.0610771]
[1718099035362,0.059505,67232.0,67220.0,0.0610771]
[1718099035591,0.14431993,67231.0,67221.0,0.06718461]
[1718099036521,0.50743792,67230.0,67221.0,0.06718461]
[1718099036767,0.50743792,67230.0,67219.0,0.2869]
[1718099036768,0.001,67223.0,67220.0,0.006]
[1718099036988,0.14431993,67222.0,67213.0,0.4655]
[1718099037229,0.14431993,67222.0,67221.0,0.006]
[1718099037696,0.14431993,67222.0,67214.0,0.04655]
[1718099038112,0.14431993,67222.0,67220.0,0.005]
[1718099038558,0.14431993,67222.0,67221.0,0.005]
[1718099038759,0.14431993,67222.0,67220.0,0.005]
[1718099039412,0.14431993,67222.0,67214.0,0.04655]
[1718099039586,0.14431993,67222.0,67220.0,0.005]
[1718099042774,0.14431993,67222.0,67220.0,0.011]
[1718099043563,0.15620149,67221.0,67220.0,0.011]
[1718099043783,0.58872142,67221.0,67220.0,0.011]
[1718099043993,0.60872142,67221.0,67220.0,0.011]
[1718099044398,0.60872142,67221.0,67220.0,0.005]
[1718099044813,0.74669704,67221.0,67220.0,0.005]
[1718099045235,0.74669704,67221.0,67203.0,0.02072938]
[1718099045443,0.5,67214.0,67204.0,0.04820794]
[1718099045667,0.14879,67209.0,67204.0,0.04820794]
[1718099045872,0.14431993,67208.0,67204.0,0.04820794]
[1718099046706,0.14431993,67208.0,67204.0,0.05420794]
[1718099047115,0.14431993,67208.0,67204.0,0.06020794]
[1718099047317,0.14431993,67208.0,67205.0,0.05422873]
[1718099048770,0.04903744,67218.0,67210.0,0.4457]
[1718099048971,0.04903744,67218.0,67212.0,0.02]
[1718099049425,0.43295979,67224.0,67210.0,0.614485]
[1718099049631,0.14431993,67223.0,67210.0,0.614485]
[1718099049869,0.14431993,67223.0,67211.0,0.0614485]
[1718099050254,0.14431993,67223.0,67212.0,0.006]
[1718099050862,0.14431993,67223.0,67211.0,0.0614485]
[1718099051052,0.5,67221.0,67211.0,0.0614485]
[1718099051345,0.148772,67217.0,67211.0,0.0674485]
[1718099051516,0.14431993,67216.0,67212.0,0.05131485]
[1718099053005,0.14431993,67216.0,67212.0,0.05731485]
[1718099053221,0.14431993,67216.0,67212.0,0.06331485]
[1718099053433,0.14431993,67216.0,67212.0,0.05731485]
[1718099053672,0.00743921,67215.0,67212.0,0.05731485]
[1718099053914,0.14431993,67214.0,67213.0,0.05030149]
[1718099054122,0.14426618,67214.0,67213.0,0.05030149]
[1718099054563,0.14878,67213.0,67212.0,0.012]
[1718099054785,0.29309993,67213.0,67212.0,0.012]
[1718099055625,0.29309993,67213.0,67212.0,0.006]
[1718099056048,0.29309993,67213.0,67212.0,0.012]
[1718099056222,0.29309993,67213.0,67204.0,0.00086]
[1718099056223,0.148795,67207.0,67204.0,0.00086]
[1718099056468,0.14431993,67206.0,67204.0,0.00086]
[1718099056919,0.001,67213.0,67205.0,0.4518]
[1718099057137,0.14431993,67212.0,67206.0,0.045266]
[1718099059133,0.000946,67215.0,67206.0,0.045266]
[1718099059344,0.000946,67215.0,67206.0,0.194061]
[1718099059764,0.000946,67215.0,67206.0,0.200061]
[1718099059982,0.000946,67215.0,67207.0,0.0672721]
[1718099061104,0.64431993,67214.0,67207.0,0.0672721]
[1718099061314,0.148791,67208.0,67207.0,0.0672721]
[1718099061550,0.29311093,67208.0,67207.0,0.0672721]
[1718099061765,0.148794,67207.0,67206.0,0.006]
[1718099061984,0.29311393,67207.0,67206.0,0.006]
[1718099062894,0.29311393,67207.0,67204.0,0.00086]
[1718099062895,0.148796,67206.0,67204.0,0.00086]
[1718099063176,0.14431993,67205.0,67204.0,0.00086]
[1718099063723,0.29311793,67205.0,67204.0,0.00086]
[1718099064605,0.29311793,67205.0,67204.0,0.01186]
[1718099064794,0.29311793,67205.0,67204.0,0.00686]
[1718099066024,0.29311793,67205.0,67204.0,0.00086]
[1718099066263,0.29311793,67205.0,67204.0,0.00586]
[1718099066486,0.29311793,67205.0,67204.0,0.00086]
[1718099066773,0.29311793,67205.0,67204.0,0.00486]
[1718099067024,0.29311793,67205.0,67204.0,0.01086]
[1718099067258,0.29311793,67205.0,67204.0,0.00686]
[1718099067448,0.29311793,67205.0,67204.0,0.00086]
[1718099067685,0.29311793,67205.0,67204.0,0.00986]
[1718099068207,0.29311793,67205.0,67204.0,0.00486]
[1718099068485,0.29311793,67205.0,67199.0,0.01]
[1718099068486,1.602612,67194.0,67175.0,0.00855]
[1718099068704,1.91909189,67194.0,67175.0,0.00855]
[1718099068925,2.61915141,67194.0,67175.0,0.00855]
[1718099069227,2.85555961,67194.0,67175.0,0.00855]
[1718099069494,2.17033176,67194.0,67175.0,0.00855]
[1718099069741,2.0751718,67194.0,67175.0,0.00855]
[1718099070229,2.11917715,67194.0,67193.0,0.00956]
[1718099070504,1.81237332,67194.0,67193.0,0.01056]
[1718099070698,1.75087667,67194.0,67193.0,0.00956]
[1718099071178,1.58148693,67194.0,67193.0,0.00956]
[1718099071700,1.50148693,67194.0,67193.0,0.00956]
[1718099071967,1.20384193,67194.0,67193.0,0.00956]
[1718099072521,1.21184193,67194.0,67193.0,0.01056]
[1718099073134,1.21184193,67194.0,67193.0,0.00956]
[1718099073135,1.20384193,67194.0,67193.0,0.00956]
[1718099073416,1.21184193,67194.0,67193.0,0.01056]
[1718099073419,1.20984193,67194.0,67193.0,0.00956]
[1718099073619,1.20284193,67194.0,67193.0,0.00956]
[1718099073893,1.20984193,67194.0,67193.0,0.00956]
[1718099074391,1.21084193,67194.0,67193.0,0.01056]
[1718099074643,1.50848693,67194.0,67193.0,0.01056]
[1718099075147,1.50848693,67194.0,67193.0,0.00956]
[1718099075148,1.50748693,67194.0,67193.0,0.00956]
[1718099075372,0.89314193,67194.0,67193.0,0.00856]
[1718099075620,0.79314193,67194.0,67193.0,0.00856]
[1718099075841,0.79714193,67194.0,67193.0,0.00956]
[1718099076252,0.79314193,67194.0,67193.0,0.00856]
[1718099076721,0.79814193,67194.0,67193.0,0.01056]
[1718099076984,0.79714193,67194.0,67193.0,0.00956]
[1718099077174,0.79314193,67194.0,67193.0,0.00956]
[1718099077401,0.79414193,67194.0,67193.0,0.00956]
[1718099077580,0.79814193,67194.0,67193.0,0.01056]
[1718099077816,0.81814193,67194.0,67193.0,0.01056]
[1718099078037,0.79814193,67194.0,67193.0,0.01056]
[1718099079152,0.85768493,67194.0,67193.0,0.01056]
[1718099080259,1.47297493,67194.0,67193.0,0.01056]
[1718099080672,1.57297493,67194.0,67193.0,0.01056]
[1718099082709,1.87061993,67194.0,67193.0,0.01056]
[1718099082916,1.57297493,67194.0,67193.0,0.01056]
[1718099085386,1.55297493,67194.0,67193.0,0.01056]
[1718099085586,1.57297493,67194.0,67193.0,0.01056]
[1718099085812,1.55297493,67194.0,67193.0,0.01056]
[1718099086062,1.25532993,67194.0,67193.0,0.01056]
[1718099086195,1.27532993,67194.0,67193.0,0.01056]
[1718099088259,1.57297493,67194.0,67193.0,0.01056]
[1718099088501,1.27532993,67194.0,67193.0,0.01056]
[1718099089335,1.25532993,67194.0,67193.0,0.01056]
[1718099089580,1.57297493,67194.0,67193.0,0.01056]
[1718099090894,1.25532993,67194.0,67193.0,0.01056]
[1718099091115,0.85768493,67194.0,67193.0,0.01056]
[1718099091579,0.85768493,67194.0,67193.0,0.055816]
[1718099092452,0.85768493,67194.0,67193.0,0.054816]
[1718099092656,0.85368493,67194.0,67193.0,0.054816]
[1718099092867,0.85768493,67194.0,67193.0,0.054816]
[1718099093082,1.15532993,67194.0,67193.0,0.00956]
[1718099093518,1.15032993,67194.0,67193.0,0.00856]
[1718099093737,0.85568493,67194.0,67193.0,0.00856]
[1718099093950,0.85668493,67194.0,67193.0,0.00856]
[1718099094159,0.85568493,67194.0,67193.0,0.00856]
[1718099094574,0.85668493,67194.0,67193.0,0.15346]
[1718099094888,0.85268493,67194.0,67193.0,0.479406]
[1718099095316,0.85368493,67194.0,67193.0,0.479406]
[1718099095516,0.35368493,67194.0,67193.0,0.479406]
[1718099095943,0.060543,67194.0,67193.0,0.479406]
[1718099096181,0.001,67194.0,67193.0,0.479406]
[1718099096391,0.001,67194.0,67193.0,0.480406]
[1718099096392,0.004,67194.0,67193.0,0.480406]
[1718099096756,0.5,67202.0,67193.0,0.479406]
[1718099096970,0.14431993,67201.0,67194.0,0.0479406]
[1718099099553,0.00744066,67200.0,67194.0,0.0479406]
[1718099099687,0.14882,67195.0,67194.0,0.0479406]
[1718099100291,0.148822,67194.0,67193.0,0.46406]
[1718099100536,0.29314193,67194.0,67193.0,0.46406]
[1718099102216,0.29414193,67194.0,67193.0,0.46406]
[1718099102938,0.79414193,67194.0,67193.0,0.00856]
[1718099103378,0.79514193,67194.0,67193.0,0.00856]
[1718099103884,0.29514193,67194.0,67193.0,0.00856]
[1718099104107,0.14631993,67194.0,67193.0,0.00856]
[1718099104330,0.14631993,67194.0,67193.0,0.30666]
[1718099104548,0.002,67194.0,67193.0,0.496026]
[1718099104974,0.001,67194.0,67193.0,0.496026]
[1718099105629,0.148796,67206.0,67193.0,0.644851]
[1718099105850,0.14351993,67205.0,67193.0,0.664851]
[1718099106058,0.059528,67203.0,67194.0,0.0664851]
[1718099106270,0.14431993,67202.0,67194.0,0.0664851]
[1718099106488,0.0499943,67207.0,67200.0,0.02]
[1718099106716,0.25384023,67207.0,67200.0,0.02]
[1718099106929,0.19431423,67207.0,67201.0,0.38397]
[1718099107159,0.19431423,67207.0,67202.0,0.149]
[1718099107382,0.059523,67210.0,67202.0,0.149]
[1718099107602,0.14878,67214.0,67202.0,0.169]
[1718099107811,0.29310093,67213.0,67203.0,0.0681777]
[1718099108463,0.35262193,67213.0,67203.0,0.0681777]
[1718099109149,0.35262193,67213.0,67203.0,0.0741777]
[1718099109363,0.001,67207.0,67203.0,0.0741777]
[1718099109806,0.148798,67206.0,67203.0,0.0741777]
[1718099110015,0.20384093,67213.0,67204.0,0.05404777]
[1718099110244,0.148798,67206.0,67204.0,0.05404777]
[1718099110663,0.20384093,67213.0,67204.0,0.05404777]
[1718099110887,0.14431993,67205.0,67204.0,0.05404777]
[1718099111565,0.14431993,67205.0,67204.0,0.05704777]
[1718099111780,0.14431993,67205.0,67204.0,0.05404777]
[1718099112203,0.14431993,67205.0,67204.0,0.05804777]
[1718099112410,0.14431993,67205.0,67204.0,0.05404777]
[1718099113457,0.14431993,67205.0,67204.0,0.06004777]
[1718099113889,0.14431993,67205.0,67204.0,0.06304777]
[1718099114099,0.14431993,67205.0,67204.0,0.05704777]
[1718099114265,0.14431993,67205.0,67204.0,0.05804777]
[1718099114521,0.14431993,67205.0,67204.0,0.06204777]
[1718099114930,0.14431993,67205.0,67204.0,0.05404777]
[1718099115317,0.14431993,67205.0,67204.0,0.05704777]
[1718099115469,0.14431993,67205.0,67204.0,0.05404777]
[1718099115871,0.14431993,67205.0,67204.0,0.05804777]
[1718099116258,0.14431993,67205.0,67204.0,0.06104777]
[1718099116909,0.14431993,67205.0,67204.0,0.05804777]
[1718099117116,0.14431993,67205.0,67204.0,0.06204777]
[1718099117640,0.14431993,67205.0,67204.0,0.05404777]
[1718099117989,0.14431993,67205.0,67204.0,0.06004777]
[1718099118396,0.14431993,67205.0,67204.0,0.05704777]
[1718099118602,0.14431993,67205.0,67204.0,0.06104777]
[1718099119062,0.14431993,67205.0,67204.0,0.05273478]
[1718099119416,0.29311793,67205.0,67204.0,0.003]
[1718099119854,0.29311793,67205.0,67204.0,0.007]
[1718099120283,0.29311793,67205.0,67204.0,0.003]
[1718099120656,0.29311793,67205.0,67198.0,0.3136]
[1718099120890,0.1488,67204.0,67202.0,0.00086]
[1718099121125,0.14431993,67203.0,67202.0,0.00086]
[1718099122223,0.14431993,67203.0,67202.0,0.00286]
[1718099122644,0.14431993,67203.0,67202.0,0.00086]
[1718099123721,0.79312193,67203.0,67202.0,0.00086]
[1718099123952,0.79312193,67203.0,67202.0,0.00286]
[1718099124984,0.29312193,67203.0,67202.0,0.00286]
[1718099125187,0.14431993,67203.0,67202.0,0.00286]
[1718099127379,0.059521,67213.0,67202.0,0.00286]
[1718099127597,0.059521,67213.0,67207.0,0.148792]
[1718099127842,0.000946,67214.0,67203.0,0.442]
[1718099127843,0.000946,67214.0,67209.0,0.168787]
[1718099128106,0.000946,67214.0,67211.0,0.1538]
[1718099128349,0.000946,67214.0,67213.0,0.02]
[1718099128583,0.000946,67214.0,67213.0,0.16878]
[1718099128783,0.000946,67214.0,67213.0,0.52204592]
[1718099130491,0.000946,67214.0,67213.0,0.50704592]
[1718099130920,0.000946,67214.0,67213.0,0.35326592]
[1718099131342,0.000946,67214.0,67213.0,0.35926592]
[1718099132172,0.000946,67214.0,67213.0,0.35326592]
[1718099132591,0.000946,67214.0,67213.0,0.36426592]
[1718099133000,0.000946,67214.0,67213.0,0.35926592]
[1718099133154,0.000946,67214.0,67213.0,0.36426592]
[1718099133363,0.000946,67214.0,67213.0,0.51304592]
[1718099135465,0.000946,67214.0,67213.0,0.36426592]
[1718099136095,0.000946,67214.0,67213.0,0.04936592]
[1718099137673,0.01671011,67214.0,67213.0,0.04936592]
[1718099138959,0.000946,67214.0,67213.0,0.04936592]
[1718099142443,0.000946,67214.0,67213.0,0.19814592]
[1718099143071,0.000946,67214.0,67213.0,0.21814592]
[1718099143684,0.000946,67214.0,67213.0,0.19814592]
[1718099143890,0.000946,67214.0,67213.0,0.21814592]
[1718099144101,0.000946,67214.0,67213.0,0.19814592]
[1718099146991,0.000946,67214.0,67213.0,0.21814592]
[1718099147215,0.000946,67214.0,67213.0,0.19814592]
[1718099147444,0.000946,67214.0,67213.0,0.21814592]
[1718099150351,0.000946,67214.0,67213.0,0.68894592]
[1718099153822,0.000946,67214.0,67213.0,0.68394592]
[1718099154030,0.000946,67214.0,67213.0,1.09850692]
[1718099154238,0.000946,67214.0,67213.0,1.10450692]
[1718099154700,0.000946,67214.0,67213.0,1.09850692]
[1718099154900,0.000946,67214.0,67213.0,1.10450692]
[1718099155325,0.000946,67214.0,67213.0,1.10350692]
[1718099155750,0.000946,67214.0,67213.0,1.10450692]
[1718099155954,0.000946,67214.0,67213.0,1.29850692]
[1718099156284,0.000946,67214.0,67213.0,1.09850692]
[1718099156706,0.000946,67214.0,67213.0,1.10250692]
[1718099157177,0.000946,67214.0,67213.0,1.24682685]
[1718099157386,0.000946,67214.0,67213.0,2.06108785]
[1718099157605,0.000946,67214.0,67213.0,2.16108785]
[1718099158239,0.000946,67214.0,67213.0,2.16308785]
[1718099158676,0.000946,67214.0,67213.0,2.15708785]
[1718099158884,0.000946,67214.0,67213.0,2.16208785]
[1718099159502,0.000946,67214.0,67213.0,2.16308785]
[1718099159926,0.000946,67214.0,67213.0,1.87052685]
[1718099160569,0.000946,67214.0,67213.0,1.57052685]
[1718099160779,0.000946,67214.0,67213.0,1.42620692]
[1718099161011,0.000946,67214.0,67213.0,1.40320692]
[1718099161837,0.000946,67214.0,67213.0,1.39820692]
[1718099162051,0.000946,67214.0,67213.0,0.29314592]
[1718099162275,0.000946,67214.0,67213.0,0.31814592]
[1718099162484,0.000946,67214.0,67213.0,0.29814592]
[1718099162687,0.01417974,67214.0,67213.0,0.30414592]
[1718099162900,0.01417974,67214.0,67213.0,0.29314592]
[1718099163117,0.01417974,67214.0,67213.0,0.28714592]
[1718099163334,0.01417974,67214.0,67213.0,0.29814592]
[1718099163549,0.01417974,67214.0,67213.0,0.29214592]
[1718099163762,0.01417974,67214.0,67213.0,0.28714592]
[1718099165096,0.01417974,67214.0,67213.0,0.29314592]
[1718099165317,0.01417974,67214.0,67213.0,0.28714592]
[1718099165534,0.01417974,67214.0,67213.0,0.31214592]
[1718099165747,0.01417974,67214.0,67213.0,0.31762686]
[1718099165991,0.01417974,67214.0,67213.0,0.30662686]
[1718099166297,0.000946,67214.0,67213.0,0.31762686]
[1718099166515,0.000946,67214.0,67213.0,0.62619883]
[1718099166686,0.000946,67214.0,67213.0,0.62019883]
[1718099166881,0.000946,67214.0,67213.0,0.61519883]
[1718099167097,0.000946,67214.0,67213.0,0.62619883]
[1718099168480,0.000946,67214.0,67213.0,1.60585983]
[1718099168696,0.000946,67214.0,67213.0,2.04174076]
[1718099169015,0.000946,67214.0,67213.0,2.14674076]
[1718099169180,0.000946,67214.0,67213.0,2.15274076]
[1718099169582,0.000946,67214.0,67213.0,2.25274076]
[1718099169807,0.000946,67214.0,67213.0,2.24774076]
[1718099170009,0.000946,67214.0,67213.0,2.24174076]
[1718099170218,0.000946,67214.0,67213.0,2.29117817]
[1718099170420,0.000946,67214.0,67213.0,2.28362753]
[1718099170869,0.51184906,67238.0,67237.0,0.02]
[1718099170870,0.20944906,67238.0,67237.0,0.02]
[1718099171245,0.20944906,67238.0,67237.0,0.168727]
[1718099171246,0.17320565,67238.0,67237.0,0.168727]
[1718099171443,0.17320565,67238.0,67237.0,0.1855997]
[1718099171646,0.17320565,67238.0,67237.0,0.1655997]
[1718099172072,0.17420565,67238.0,67237.0,0.1655997]
[1718099172879,0.17420565,67238.0,67237.0,0.0168727]
[1718099173104,0.17320565,67238.0,67237.0,0.0168727]
[1718099173308,0.2952,67237.0,67228.0,0.148746]
[1718099173515,0.01324625,67236.0,67229.0,0.30851925]
[1718099176287,0.01324625,67236.0,67229.0,0.31451925]
[1718099176459,0.01324625,67236.0,67230.0,0.30851925]
[1718099176666,0.01324625,67236.0,67231.0,0.04632653]
[1718099177125,0.01324625,67236.0,67229.0,0.011]
[1718099177328,0.01324625,67236.0,67230.0,0.30851812]
[1718099178603,0.16500275,67236.0,67230.0,0.30851812]
[1718099178786,0.16500275,67236.0,67230.0,0.011]
[1718099179023,0.148736,67233.0,67230.0,0.011]
[1718099179228,0.59711993,67232.0,67230.0,0.011]
[1718099179446,0.61043802,67232.0,67230.0,0.011]
[1718099180126,0.61043802,67232.0,67219.0,0.248766]
[1718099180352,0.61043802,67232.0,67220.0,0.33542966]
[1718099180565,0.61043802,67232.0,67230.0,0.011]
[1718099181996,0.61043802,67232.0,67230.0,0.006]
[1718099182403,0.61043802,67232.0,67220.0,0.1756416]
[1718099182614,0.61043802,67232.0,67221.0,0.30855277]
[1718099182833,0.61043802,67232.0,67230.0,0.006]
[1718099183224,0.61043802,67232.0,67230.0,0.011]
[1718099183747,0.61043802,67232.0,67230.0,0.005]
[1718099185708,0.61138402,67232.0,67230.0,0.011]
[1718099187587,0.02,67231.0,67230.0,0.011]
[1718099187794,0.16431993,67231.0,67230.0,0.011]
[1718099188006,0.17541834,67231.0,67230.0,0.011]
[1718099188217,0.15541834,67231.0,67230.0,0.011]
[1718099188434,0.30415834,67231.0,67230.0,0.011]
[1718099188849,0.5,67225.0,67218.0,0.01783692]
[1718099189275,0.01104921,67224.0,67219.0,0.01178369]
[1718099191889,0.0074381,67223.0,67219.0,0.01178369]
[1718099192104,0.1553,67222.0,67219.0,0.005]
[1718099192307,0.31059239,67222.0,67219.0,0.011]
[1718099192843,0.31059239,67222.0,67213.0,0.05619794]
[1718099193065,0.31059239,67222.0,67214.0,0.05224829]
[1718099193259,0.31059239,67222.0,67219.0,0.006]
[1718099194040,0.31059239,67222.0,67214.0,0.05224829]
[1718099194649,0.31059239,67222.0,67214.0,0.07224829]
[1718099194857,0.31059239,67222.0,67214.0,0.05224829]
[1718099195093,0.31059239,67222.0,67219.0,0.005]
[1718099195489,0.31059239,67222.0,67215.0,0.05747312]
[1718099196686,0.31059239,67222.0,67215.0,0.06847312]
[1718099199834,0.148774,67216.0,67215.0,0.011]
[1718099200056,0.30382635,67216.0,67215.0,0.011]
[1718099201182,0.30382635,67216.0,67215.0,0.006]
[1718099201607,0.30382635,67216.0,67215.0,0.011]
[1718099202069,0.301177,67215.0,67213.0,0.00086]
[1718099202287,0.14431993,67214.0,67213.0,0.00086]
[1718099202505,0.15502172,67214.0,67213.0,0.00086]
[1718099203436,0.15502172,67214.0,67213.0,0.00686]
[1718099203551,0.30379972,67214.0,67213.0,0.00686]
[1718099203997,0.32379972,67214.0,67213.0,0.00686]
[1718099204205,0.32379972,67214.0,67213.0,0.00086]
[1718099204446,0.62469972,67214.0,67213.0,0.00086]
[1718099204646,0.62469972,67214.0,67213.0,0.00586]
[1718099205297,0.62469972,67214.0,67213.0,0.00086]
[1718099205705,0.5,67209.0,67204.0,0.00827838]
[1718099205912,0.14431993,67208.0,67202.0,0.00086]
[1718099206112,0.14431993,67208.0,67202.0,0.030596]
[1718099206320,0.01070179,67207.0,67202.0,0.030596]
[1718099207564,0.15502172,67207.0,67202.0,0.030596]
[1718099208438,0.14431993,67206.0,67202.0,0.034596]
[1718099208652,0.14431993,67206.0,67202.0,0.00486]
[1718099208868,0.01067923,67205.0,67202.0,0.00086]
[1718099209094,0.1561,67204.0,67202.0,0.00086]
[1718099209325,0.1561,67204.0,67202.0,0.00686]
[1718099209561,0.01057719,67203.0,67202.0,0.00486]
[1718099209737,0.01057719,67203.0,67202.0,0.01086]
[1718099209978,0.01057719,67203.0,67202.0,0.00686]
[1718099210190,0.01057719,67203.0,67202.0,0.00086]
[1718099210577,0.14431993,67206.0,67202.0,0.00686]
[1718099210790,0.01056406,67203.0,67202.0,0.00686]
[1718099211018,0.14431993,67206.0,67202.0,0.00086]
[1718099211458,0.01056406,67205.0,67202.0,0.00086]
[1718099211676,0.15488399,67205.0,67202.0,0.00486]
[1718099212162,0.15488399,67205.0,67202.0,0.00086]
[1718099212462,0.3203,67204.0,67202.0,0.00086]
[1718099212730,0.3203,67204.0,67202.0,0.01086]
[1718099212956,0.01045364,67203.0,67202.0,0.01086]
[1718099213182,0.01045364,67203.0,67202.0,0.00486]
[1718099213404,0.01045364,67203.0,67202.0,0.01086]
[1718099213659,0.01045364,67203.0,67202.0,0.00086]
[1718099214168,0.01045364,67203.0,67202.0,0.00686]
[1718099215162,0.01045364,67203.0,67202.0,0.01086]
[1718099215421,0.01045364,67203.0,67202.0,0.00486]
[1718099215871,0.01045364,67203.0,67202.0,0.01086]
[1718099216100,0.01045364,67203.0,67202.0,0.00686]
[1718099216526,0.01045364,67203.0,67202.0,0.01086]
[1718099217246,0.62031993,67203.0,67202.0,0.01086]
[1718099217470,0.63076106,67203.0,67202.0,0.01086]
[1718099217687,0.77956306,67203.0,67202.0,0.01086]
[1718099220064,0.45866306,67203.0,67202.0,0.01086]
[1718099220485,0.30356306,67203.0,67202.0,0.01086]
[1718099221785,0.30356306,67203.0,67202.0,0.00486]
[1718099222216,0.30356306,67203.0,67202.0,0.01086]
[1718099222653,0.30356306,67203.0,67202.0,0.00486]
[1718099223116,0.30356306,67203.0,67202.0,0.01086]
[1718099224955,0.32356306,67203.0,67202.0,0.00086]
[1718099225162,0.41036306,67203.0,67202.0,0.00486]
[1718099225377,0.41036306,67203.0,67202.0,0.01086]
[1718099225588,0.56886306,67203.0,67202.0,0.01086]
[1718099225849,0.56886306,67203.0,67202.0,0.00686]
[1718099226070,0.56886306,67203.0,67202.0,0.01086]
[1718099226290,0.46206306,67203.0,67202.0,0.01086]
[1718099226955,0.54886306,67203.0,67202.0,0.01086]
[1718099227174,0.56886306,67203.0,67202.0,0.01086]
[1718099227387,0.46206306,67203.0,67202.0,0.01086]
[1718099227608,0.56886306,67203.0,67202.0,0.01086]
[1718099228522,0.48206306,67203.0,67202.0,0.01086]
[1718099228946,0.52,67194.0,67193.0,0.00856]
[1718099229173,0.52,67194.0,67175.0,0.00855]
[1718099229174,0.668862,67176.0,67175.0,0.00855]
[1718099229411,1.09998193,67176.0,67175.0,0.00855]
[1718099229650,0.99998193,67176.0,67175.0,0.00855]
[1718099229894,0.9235782,67176.0,67175.0,0.00855]
[1718099230106,1.3167782,67176.0,67175.0,0.00855]
[1718099230323,2.46902313,67176.0,67175.0,0.00855]
[1718099230543,2.3247032,67176.0,67175.0,0.00855]
[1718099230755,2.2379032,67176.0,67175.0,0.00855]
[1718099231001,2.02733909,67176.0,67175.0,0.00855]
[1718099231226,2.016702,67176.0,67175.0,0.00855]
[1718099231444,1.74334984,67176.0,67175.0,0.00855]
[1718099231663,1.75234984,67176.0,67175.0,0.01455]
[1718099231872,1.75234984,67176.0,67175.0,0.00955]
[1718099232304,1.74834984,67176.0,67175.0,0.00955]
[1718099232534,1.96134984,67176.0,67175.0,0.00955]
[1718099232740,2.3166032,67176.0,67175.0,0.00955]
[1718099233612,2.3166032,67176.0,67175.0,0.01055]
[1718099233613,2.66779984,67176.0,67175.0,0.01055]
[1718099233837,2.37007484,67176.0,67175.0,0.01055]
[1718099234047,2.84739984,67176.0,67175.0,0.01055]
[1718099234465,2.84739984,67176.0,67175.0,5.01055]
[1718099234693,2.99171977,67176.0,67175.0,5.01055]
[1718099234908,2.99171977,67176.0,67175.0,4.52895]
[1718099235347,2.97871977,67176.0,67175.0,4.52895]
[1718099235558,3.11826664,67176.0,67175.0,4.52995]
[1718099235762,3.12726664,67176.0,67175.0,4.52995]
[1718099236089,2.24102171,67176.0,67175.0,4.52250481]
[1718099236302,2.43602171,67176.0,67175.0,4.52250481]
[1718099236520,2.46722171,67176.0,67175.0,4.52350481]
[1718099236721,2.66722171,67176.0,67175.0,4.52350481]
[1718099237357,2.25002171,67176.0,67175.0,4.52350481]
[1718099237564,2.65822171,67176.0,67175.0,4.52250481]
[1718099237977,2.66822171,67176.0,67175.0,4.52350481]
[1718099238186,2.62575007,67176.0,67175.0,4.52350481]
[1718099238537,2.44351506,67176.0,67175.0,4.52350481]
[1718099238755,2.64351506,67176.0,67175.0,4.52350481]
[1718099238982,0.80546,67177.0,67176.0,2.35648494]
[1718099239399,1.06513164,67177.0,67176.0,2.35648494]
[1718099240269,1.06513164,67177.0,67176.0,2.20248494]
[1718099240270,2.21765309,67177.0,67176.0,2.20248494]
[1718099241304,2.19322597,67177.0,67176.0,0.93590248]
[1718099241467,2.51042597,67177.0,67176.0,0.58054548]
[1718099241673,1.228367,67176.0,67175.0,4.48810153]
[1718099241874,1.8167486,67176.0,67175.0,4.41510153]
[1718099242247,2.1264736,67176.0,67175.0,4.14279146]
[1718099242474,2.88840728,67176.0,67175.0,3.12164019]
[1718099242686,3.04367866,67176.0,67175.0,2.96603073]
[1718099242893,3.24887866,67176.0,67175.0,2.95758209]
[1718099243108,3.24887866,67176.0,67175.0,2.94344045]
[1718099243316,3.26087866,67176.0,67175.0,2.94071613]
[1718099243527,6.81811766,67176.0,67175.0,2.90869181]
[1718099243754,2.76624528,67176.0,67175.0,2.90869181]
[1718099243959,2.62862228,67176.0,67175.0,2.90869181]
[1718099244162,3.30011728,67176.0,67175.0,2.90869181]
[1718099244368,3.35064576,67176.0,67175.0,2.90869181]
[1718099244568,2.94509376,67176.0,67175.0,2.90869181]
[1718099244772,2.93746376,67176.0,67175.0,2.90969181]
[1718099244988,2.57495076,67176.0,67175.0,2.90969181]
[1718099245187,4.31669297,67176.0,67175.0,2.90969181]
[1718099245387,4.31669297,67176.0,67175.0,2.90869181]
[1718099245602,4.30369297,67176.0,67175.0,2.90869181]
[1718099245799,3.98822576,67176.0,67175.0,2.90769181]
[1718099246004,3.57761476,67176.0,67175.0,2.90769181]
[1718099246219,1.71695076,67176.0,67175.0,2.90769181]
[1718099246429,1.78295076,67176.0,67175.0,2.90769181]
[1718099246656,1.65322076,67176.0,67175.0,2.90769181]
[1718099246864,1.49048541,67176.0,67175.0,2.90769181]
[1718099247328,1.17876041,67176.0,67175.0,2.90769181]
[1718099247577,1.21141569,67176.0,67175.0,2.90669181]
[1718099247745,1.22541569,67176.0,67175.0,2.90669181]
[1718099247956,1.23741569,67176.0,67175.0,2.90769181]
[1718099248325,1.23741569,67176.0,67175.0,2.90669181]
[1718099248550,1.22541569,67176.0,67175.0,2.90669181]
[1718099249028,1.22541569,67176.0,67175.0,2.90769181]
[1718099249212,1.32541569,67176.0,67175.0,2.90769181]
[1718099249414,1.32541569,67176.0,67175.0,2.90869181]
[1718099249415,1.30376041,67176.0,67175.0,2.90869181]
[1718099249615,1.28976041,67176.0,67175.0,2.90669181]